bitfinex/quotes_BTCUSD_20241101
["timestamp","ask_amount","ask_price","bid_price","bid_amount"]
[1730427204161,0.145092,68922.0,68908.0,0.13845525]
[1730427204368,0.395159,68928.0,68903.0,0.01]
[1730427204369,0.21769576,68913.0,68903.0,0.01]
[1730427204572,0.005,68921.0,68903.0,0.01]
[1730427204573,0.145107,68915.0,68903.0,0.01]
[1730427204773,0.290195,68919.0,68903.0,0.01]
[1730427204774,0.145109,68914.0,68903.0,0.01]
[1730427204985,0.21769576,68913.0,68903.0,0.01]
[1730427205180,0.145107,68915.0,68903.0,0.01]
[1730427205597,0.50788776,68920.0,68903.0,0.01]
[1730427205598,0.21769576,68920.0,68903.0,0.01]
[1730427205749,0.145112,68913.0,68903.0,0.01]
[1730427205951,0.145107,68915.0,68903.0,0.01]
[1730427206223,0.21769576,68913.0,68903.0,0.01]
[1730427206812,0.21769576,68920.0,68898.0,0.21769576]
[1730427207043,0.145105,68916.0,68899.0,0.42873425]
[1730427207218,0.21769576,68913.0,68900.0,0.145136]
[1730427207425,0.21769576,68920.0,68901.0,0.13845525]
[1730427207626,0.21769576,68920.0,68907.0,0.145122]
[1730427207761,0.21769576,68920.0,68907.0,0.13845525]
[1730427207965,0.21769576,68920.0,68907.0,0.28357625]
[1730427208163,0.295177,68924.0,68908.0,0.16681287]
[1730427208164,0.21769576,68923.0,68908.0,0.16681287]
[1730427208372,0.21769576,68923.0,68908.0,0.28357525]
[1730427208578,0.36278576,68923.0,68908.0,0.13845525]
[1730427209078,0.21769576,68923.0,68908.0,0.28357525]
[1730427209261,0.36278676,68923.0,68908.0,0.13845525]
[1730427209479,0.21769576,68923.0,68908.0,0.28357425]
[1730427209638,0.36278476,68923.0,68909.0,0.05738233]
[1730427209838,0.145091,68922.0,68908.0,0.13845525]
[1730427210187,0.36278576,68923.0,68908.0,0.13845525]
[1730427210408,0.145092,68922.0,68908.0,0.13845525]
[1730427210560,0.36278476,68923.0,68908.0,0.13845525]
[1730427210765,0.145092,68922.0,68908.0,0.13845525]
[1730427210969,0.145092,68922.0,68909.0,0.0501277]
[1730427211379,0.21769576,68923.0,68909.0,0.0501277]
[1730427211380,0.21769576,68923.0,68910.0,0.1639]
[1730427211704,0.36278676,68923.0,68910.0,0.1639]
[1730427211902,0.145098,68919.0,68910.0,0.1639]
[1730427212062,0.36278576,68923.0,68910.0,0.1639]
[1730427212284,0.21769576,68923.0,68910.0,0.1639]
[1730427212476,0.001642,68927.0,68913.0,0.21769576]
[1730427212678,0.001642,68927.0,68911.0,0.22025695]
[1730427212679,0.21769576,68926.0,68918.0,0.290199]
[1730427212895,0.001642,68927.0,68923.0,0.1748887]
[1730427213105,0.00154,68933.0,68932.0,0.17007]
[1730427213307,0.21769576,68938.0,68932.0,0.17007]
[1730427213308,0.21769576,68938.0,68932.0,0.44848942]
[1730427213510,0.001642,68949.0,68932.0,0.44848942]
[1730427213511,0.001642,68949.0,68944.0,0.335245]
[1730427213712,0.001642,68949.0,68944.0,0.413745]
[1730427214133,0.001642,68949.0,68948.0,0.145036]
[1730427214341,0.001642,68949.0,68948.0,0.22021822]
[1730427214565,0.001642,68949.0,68948.0,0.28349125]
[1730427215972,0.001642,68949.0,68948.0,0.13845525]
[1730427216306,0.001642,68949.0,68948.0,0.28349125]
[1730427218444,0.001642,68949.0,68948.0,0.13845525]
[1730427219068,0.001642,68949.0,68948.0,0.28349125]
[1730427219199,0.001642,68949.0,68948.0,0.33871037]
[1730427219409,0.0243321,68949.0,68948.0,0.33871037]
[1730427220200,0.0243321,68949.0,68948.0,0.36171037]
[1730427220409,0.0243321,68949.0,68948.0,0.36371037]
[1730427221155,0.0243321,68949.0,68948.0,0.13845525]
[1730427221314,0.001642,68949.0,68948.0,0.13845525]
[1730427221518,0.001642,68949.0,68944.0,0.2457]
[1730427221749,0.001642,68949.0,68944.0,0.1672]
[1730427222289,0.001642,68949.0,68945.0,0.13845525]
[1730427222662,0.001642,68949.0,68946.0,0.03056553]
[1730427222880,0.001642,68949.0,68948.0,0.145036]
[1730427223078,0.001642,68949.0,68948.0,0.30649125]
[1730427223570,0.001642,68949.0,68948.0,0.38389125]
[1730427224510,0.001642,68949.0,68948.0,0.21585525]
[1730427224941,0.001642,68949.0,68944.0,0.1672]
[1730427225156,0.001642,68949.0,68939.0,0.0774]
[1730427225386,0.001642,68949.0,68933.0,0.1655]
[1730427225387,0.290077,68947.0,68933.0,0.1655]
[1730427225587,0.001642,68949.0,68933.0,0.1655]
[1730427225588,0.006642,68949.0,68933.0,0.1655]
[1730427225804,0.290107,68940.0,68930.0,0.21769576]
[1730427226003,0.290103,68941.0,68930.0,0.21769576]
[1730427226204,0.005,68945.0,68923.0,0.1626]
[1730427226205,0.145054,68940.0,68923.0,0.1626]
[1730427226411,0.290098,68943.0,68924.0,0.13845525]
[1730427226673,0.145055,68940.0,68925.0,0.145083]
[1730427226865,0.21769576,68935.0,68923.0,0.1626]
[1730427227176,0.21769576,68935.0,68912.0,0.1562]
[1730427227177,0.145093,68921.0,68912.0,0.1562]
[1730427227394,0.145081,68927.0,68920.0,0.21769576]
[1730427227593,0.145083,68926.0,68912.0,0.1562]
[1730427227746,0.295147,68931.0,68912.0,0.301311]
[1730427227993,0.22269576,68933.0,68922.0,0.14509]
[1730427227994,0.21769576,68933.0,68922.0,0.14509]
[1730427228197,0.21769576,68933.0,68924.0,0.145085]
[1730427228403,0.21769576,68933.0,68925.0,0.28353925]
[1730427228864,0.21769576,68933.0,68925.0,0.13845525]
[1730427229211,0.21769576,68933.0,68913.0,0.21769576]
[1730427229536,0.290136,68934.0,68920.0,0.35615101]
[1730427229695,0.21769576,68933.0,68921.0,0.0356971]
[1730427230096,0.21769576,68932.0,68922.0,0.13845525]
[1730427230301,0.21769576,68935.0,68922.0,0.13845525]
[1730427230653,0.21769576,68935.0,68922.0,0.28354625]
[1730427231014,0.290136,68933.0,68922.0,0.13845525]
[1730427231225,0.21769576,68935.0,68922.0,0.13845525]
[1730427231402,0.145078,68928.0,68919.0,0.00082]
[1730427231644,0.005,68925.0,68919.0,0.00082]
[1730427231876,0.145095,68920.0,68919.0,0.00082]
[1730427232086,0.295162,68927.0,68919.0,0.00082]
[1730427232285,0.145086,68925.0,68919.0,0.00082]
[1730427232490,0.290166,68926.0,68919.0,0.00082]
[1730427232669,0.145095,68920.0,68919.0,0.00082]
[1730427232918,0.145092,68922.0,68919.0,0.00082]
[1730427233342,0.145095,68920.0,68919.0,0.00082]
[1730427234302,0.145091,68923.0,68919.0,0.00082]
[1730427234514,0.145087,68924.0,68919.0,0.00082]
[1730427234713,0.005,68925.0,68919.0,0.00082]
[1730427235009,0.145094,68921.0,68919.0,0.00082]
[1730427235239,0.290178,68923.0,68919.0,0.00082]
[1730427235391,0.145094,68921.0,68919.0,0.00082]
[1730427235616,0.145087,68924.0,68919.0,0.00082]
[1730427236073,0.145092,68922.0,68919.0,0.00082]
[1730427236273,0.390148,68931.0,68919.0,0.00082]
[1730427236530,0.36777476,68928.0,68919.0,0.00082]
[1730427236727,0.22269576,68928.0,68919.0,0.00082]
[1730427236852,0.36777376,68928.0,68919.0,0.00082]
[1730427237056,0.22269576,68928.0,68919.0,0.00082]
[1730427237446,0.145082,68927.0,68919.0,0.00082]
[1730427237847,0.005,68928.0,68919.0,0.00082]
[1730427237848,0.145095,68920.0,68919.0,0.00082]
[1730427238065,0.56843895,68920.0,68919.0,0.00082]
[1730427238468,0.255095,68920.0,68919.0,0.00082]
[1730427239096,0.4299837,68920.0,68919.0,0.00082]
[1730427239917,0.43898212,68920.0,68919.0,0.00082]
[1730427240388,0.4199837,68920.0,68919.0,0.00082]
[1730427240627,0.4249837,68920.0,68919.0,0.00082]
[1730427241223,0.78113471,68920.0,68919.0,0.00082]
[1730427241488,0.56343895,68920.0,68919.0,0.00082]
[1730427242117,0.4249837,68920.0,68919.0,0.00082]
[1730427244796,0.56343895,68920.0,68919.0,0.00082]
[1730427245562,0.56543895,68920.0,68919.0,0.00082]
[1730427245788,0.55843895,68920.0,68919.0,0.00082]
[1730427245947,0.4249837,68920.0,68919.0,0.00082]
[1730427246647,0.29936124,68922.0,68919.0,0.00082]
[1730427246880,0.005,68936.0,68920.0,0.13845525]
[1730427247008,0.21769576,68930.0,68921.0,0.01682864]
[1730427247216,0.1765287,68937.0,68922.0,0.13845525]
[1730427247217,0.21769576,68928.0,68922.0,0.13845525]
[1730427247437,0.21769576,68926.0,68922.0,0.13845525]
[1730427247647,0.1748887,68927.0,68922.0,0.13845525]
[1730427247870,0.1748887,68935.0,68923.0,0.14135659]
[1730427248332,0.21769576,68934.0,68926.0,0.145083]
[1730427248528,0.21769576,68934.0,68924.0,0.161]
[1730427248529,0.21769576,68934.0,68927.0,0.13845525]
[1730427248758,0.36276176,68934.0,68927.0,0.13845525]
[1730427248913,0.1748887,68929.0,68924.0,0.161]
[1730427249559,0.255095,68920.0,68902.0,0.29269576]
[1730427249774,0.58150593,68920.0,68910.0,0.21769576]
[1730427250001,0.58150593,68920.0,68903.0,0.00290194]
[1730427250252,0.58150593,68920.0,68902.0,0.21769576]
[1730427250501,0.005,68912.0,68902.0,0.21769576]
[1730427250693,0.3200157,68905.0,68902.0,0.21769576]
[1730427250879,0.1748887,68905.0,68902.0,0.21769576]
[1730427251095,0.3200157,68905.0,68895.0,0.00290236]
[1730427251267,0.1748887,68905.0,68896.0,0.19053046]
[1730427252254,0.21769576,68910.0,68897.0,0.00290236]
[1730427252459,0.21769576,68910.0,68898.0,0.13845525]
[1730427252693,0.21769576,68910.0,68899.0,0.00290218]
[1730427252900,0.39258446,68917.0,68900.0,0.13845525]
[1730427253116,0.21769576,68916.0,68906.0,0.0824]
[1730427253317,0.21769576,68916.0,68907.0,0.13845525]
[1730427253513,0.1748887,68917.0,68907.0,0.13845525]
[1730427253720,0.1748887,68917.0,68909.0,0.145118]
[1730427253918,0.1748887,68917.0,68910.0,0.13845525]
[1730427254141,0.005,68920.0,68910.0,0.13845525]
[1730427254142,0.005,68920.0,68910.0,0.28357025]
[1730427254528,0.39258446,68924.0,68915.0,0.145106]
[1730427254529,0.21769576,68924.0,68915.0,0.145106]
[1730427254731,0.36278376,68924.0,68915.0,0.02864629]
[1730427254932,0.21769576,68924.0,68915.0,0.02864629]
[1730427255212,0.290149,68931.0,68909.0,0.290235]
[1730427255213,0.00664,68930.0,68916.0,0.13845525]
[1730427255461,0.00664,68930.0,68920.0,0.1599]
[1730427255462,0.00164,68930.0,68920.0,0.1599]
[1730427255709,0.00164,68930.0,68921.0,0.13845525]
[1730427256079,0.00164,68930.0,68922.0,0.14799125]
[1730427256280,0.00164,68930.0,68922.0,0.1413565]
[1730427256487,0.00164,68930.0,68923.0,0.20423395]
[1730427256645,0.00164,68930.0,68923.0,0.05914495]
[1730427256854,0.00164,68930.0,68924.0,0.21685648]
[1730427257092,0.00164,68930.0,68924.0,0.35904025]
[1730427257604,0.00164,68930.0,68924.0,0.21395525]
[1730427257802,0.00164,68930.0,68925.0,0.04330002]
[1730427258004,0.00164,68930.0,68929.0,0.145076]
[1730427258387,0.00164,68930.0,68929.0,0.28643212]
[1730427258568,0.00164,68930.0,68929.0,0.47883125]
[1730427260452,0.00164,68937.0,68936.0,0.170062]
[1730427260720,0.00164,68937.0,68936.0,0.35453705]
[1730427260914,0.00164,68937.0,68936.0,0.52113705]
[1730427261115,0.00164,68937.0,68936.0,0.59693705]
[1730427262361,0.21769576,68958.0,68948.0,0.326336]
[1730427262362,0.21933776,68949.0,68948.0,0.326336]
[1730427262547,0.21933776,68949.0,68948.0,0.52843335]
[1730427262878,0.001642,68949.0,68948.0,0.60633335]
[1730427263500,0.21769576,68958.0,68948.0,0.45929735]
[1730427263700,0.21769576,68958.0,68948.0,0.5879151]
[1730427264156,0.21769576,68958.0,68950.0,0.145031]
[1730427264503,0.005,68969.0,68958.0,0.526931]
[1730427264709,0.291556,68986.0,68964.0,0.290006]
[1730427264710,0.21769576,68977.0,68964.0,0.290006]
[1730427264919,0.21769576,68977.0,68962.0,0.1748887]
[1730427264920,0.21769576,68977.0,68976.0,0.144977]
[1730427265329,0.21769576,68985.0,68976.0,0.21094585]
[1730427265545,0.21769576,68985.0,68976.0,0.13845525]
[1730427266012,0.001642,68986.0,68977.0,0.13845525]
[1730427266215,0.001642,68986.0,68982.0,0.144963]
[1730427266418,0.001642,68986.0,68976.0,0.456254]
[1730427266419,0.001642,68986.0,68985.0,0.144959]
[1730427266625,0.001642,68986.0,68985.0,0.28341425]
[1730427266855,0.001642,68986.0,68985.0,0.31175567]
[1730427267064,0.001642,68986.0,68985.0,0.33475567]
[1730427268078,0.001642,68986.0,68985.0,0.31175567]
[1730427270079,0.001642,68986.0,68979.0,0.076]
[1730427270277,0.001642,68986.0,68976.0,0.456254]
[1730427270278,0.001642,68986.0,68980.0,0.13845525]
[1730427272016,0.001642,68986.0,68981.0,0.289934]
[1730427272194,0.001642,68986.0,68985.0,0.144959]
[1730427272457,0.001642,68986.0,68985.0,0.28341425]
[1730427272649,0.001642,68986.0,68985.0,0.36974158]
[1730427273712,0.001642,68986.0,68985.0,0.37174158]
[1730427273891,0.001642,68986.0,68985.0,0.36974158]
[1730427274103,0.001642,68986.0,68985.0,0.13845525]
[1730427274308,0.001642,68986.0,68985.0,0.28341425]
[1730427275351,0.001642,68986.0,68985.0,0.30641425]
[1730427275565,0.001642,68986.0,68985.0,0.38351425]
[1730427275978,0.001642,68986.0,68985.0,0.54301425]
[1730427276189,0.001642,68986.0,68985.0,0.67279085]
[1730427279402,0.001642,68986.0,68985.0,0.67079085]
[1730427280698,0.001642,68986.0,68985.0,0.67279085]
[1730427280906,0.001642,68986.0,68985.0,0.67079085]
[1730427281883,0.001642,68986.0,68985.0,0.67279085]
[1730427282490,0.001642,68986.0,68985.0,0.67079085]
[1730427282731,0.001642,68986.0,68985.0,0.67279085]
[1730427283319,0.000692,68986.0,68985.0,0.67079085]
[1730427284407,0.21769576,68997.0,68985.0,0.67079085]
[1730427284408,0.21769576,69019.0,68998.0,0.146931]
[1730427284650,0.21769576,69019.0,68998.0,0.54198625]
[1730427284651,0.21769576,69005.0,68998.0,0.54198625]
[1730427284999,0.21769576,69019.0,69001.0,0.146925]
[1730427285219,0.21769576,69019.0,69001.0,0.48326895]
[1730427285436,0.21769576,69019.0,69014.0,0.144898]
[1730427285639,0.21769576,69019.0,69014.0,0.30635325]
[1730427286009,0.21933576,69026.0,69014.0,0.30635325]
[1730427286674,0.21933576,69026.0,69014.0,0.30835325]
[1730427287222,0.21933576,69026.0,69014.0,0.30820314]
[1730427287630,0.00164,69026.0,69014.0,0.30820314]
[1730427287754,0.21769576,69025.0,69014.0,0.30820314]
[1730427287954,0.21769576,69025.0,69014.0,0.38210314]
[1730427288166,0.21769576,69025.0,69014.0,0.49576312]
[1730427288349,0.21769576,69025.0,69014.0,0.49776312]
[1730427288747,0.21769576,69024.0,69014.0,0.49776312]
[1730427288993,0.21769576,69024.0,69014.0,0.66826312]
[1730427289404,0.00164,69026.0,69014.0,0.66826312]
[1730427289658,0.21769576,69023.0,69014.0,0.66826312]
[1730427289850,0.21769576,69023.0,69014.0,0.67741266]
[1730427290030,0.21769576,69023.0,69014.0,0.67541266]
[1730427290231,0.21769576,69023.0,69014.0,0.67741266]
[1730427291400,0.00164,69026.0,69014.0,0.67541266]
[1730427291640,0.00164,69026.0,69014.0,0.67741266]
[1730427293546,0.00164,69026.0,69025.0,0.167875]
[1730427293756,0.00164,69026.0,69025.0,0.55596065]
[1730427293954,0.21769576,69039.0,69029.0,0.169866]
[1730427294167,0.21769576,69039.0,69029.0,0.30832125]
[1730427294364,0.21769576,69046.0,69045.0,0.144833]
[1730427294629,0.21769576,69046.0,69045.0,0.32077155]
[1730427294791,0.001642,69055.0,69054.0,0.144814]
[1730427294997,0.001642,69055.0,69054.0,0.28326925]
[1730427296420,0.001642,69055.0,69045.0,0.0374833]
[1730427296421,0.001642,69055.0,69045.0,0.0144833]
[1730427296662,0.001642,69055.0,69046.0,0.13845525]
[1730427296803,0.001642,69055.0,69047.0,0.08051383]
[1730427297018,0.001642,69055.0,69047.0,0.13845525]
[1730427297225,0.144827,69048.0,69037.0,0.36254476]
[1730427297452,0.005,69053.0,69038.0,0.13845525]
[1730427297453,0.144824,69049.0,69038.0,0.13845525]
[1730427297655,0.005,69047.0,69037.0,0.21769576]
[1730427297866,0.14983,69047.0,69037.0,0.21769576]
[1730427298024,0.144834,69045.0,69038.0,0.0677589]
[1730427298230,0.144834,69045.0,69038.0,0.06522608]
[1730427298451,0.144832,69046.0,69038.0,0.06522608]
[1730427298621,0.005,69047.0,69038.0,0.06522608]
[1730427298842,0.0832,69049.0,69039.0,0.28329825]
[1730427299025,0.0832,69049.0,69039.0,0.13845525]
[1730427299245,0.005,69051.0,69040.0,0.29258326]
[1730427299454,0.005,69051.0,69046.0,0.144829]
[1730427299607,0.005,69051.0,69047.0,0.00289612]
[1730427299812,0.005,69051.0,69048.0,0.15322826]
[1730427300023,0.001642,69055.0,69048.0,0.15322826]
[1730427300230,0.001642,69055.0,69054.0,0.144814]
[1730427300436,0.001642,69055.0,69054.0,0.28326925]
[1730427300634,0.001642,69055.0,69054.0,0.13845525]
[1730427300856,0.001642,69055.0,69054.0,0.18126568]
[1730427301286,0.001642,69055.0,69054.0,0.32607968]
[1730427301498,0.080442,69055.0,69048.0,0.01477301]
[1730427301710,0.001642,69055.0,69054.0,0.21769576]
[1730427301907,0.001642,69055.0,69054.0,0.28616487]
[1730427302111,0.001642,69055.0,69054.0,0.19603624]
[1730427302735,0.001642,69055.0,69035.0,0.289705]
[1730427302736,0.005,69052.0,69027.0,0.002]
[1730427302943,0.005,69052.0,69049.0,0.21769576]
[1730427302944,0.4645287,69051.0,69049.0,0.21769576]
[1730427303149,0.3247097,69051.0,69040.0,0.36253876]
[1730427303357,0.005,69051.0,69047.0,0.21769576]
[1730427303570,0.005,69051.0,69040.0,0.21769576]
[1730427303787,0.005,69051.0,69043.0,0.144836]
[1730427303994,0.005,69051.0,69041.0,0.05073908]
[1730427303995,0.005,69051.0,69042.0,0.289678]
[1730427304191,0.001642,69055.0,69047.0,0.21769576]
[1730427304397,0.001642,69055.0,69044.0,0.289669]
[1730427304398,0.001642,69055.0,69048.0,0.13845525]
[1730427304654,0.001642,69055.0,69048.0,0.28328125]
[1730427304806,0.001642,69055.0,69049.0,0.05729503]
[1730427305020,0.001642,69055.0,69050.0,0.13845525]
[1730427305216,0.005,69054.0,69050.0,0.13845525]
[1730427305499,0.005,69054.0,69049.0,0.05729503]
[1730427305500,0.36245776,69079.0,69067.0,0.144786]
[1730427305652,0.21769576,69072.0,69067.0,0.29771985]
[1730427305850,0.21769576,69079.0,69067.0,0.29771985]
[1730427306252,0.005,69074.0,69067.0,0.29771985]
[1730427306451,0.21769576,69079.0,69067.0,0.29771985]
[1730427306452,0.005,69076.0,69067.0,0.29771985]
[1730427306652,0.005,69074.0,69067.0,0.15293385]
[1730427307236,0.0185649,69080.0,69067.0,0.30061495]
[1730427307461,0.0185649,69080.0,69067.0,0.32071985]
[1730427307857,0.0185649,69080.0,69067.0,0.15293385]
[1730427307858,0.21769576,69074.0,69067.0,0.15293385]
[1730427308060,0.0185649,69080.0,69067.0,0.15293385]
[1730427308061,0.0185649,69080.0,69067.0,0.32071985]
[1730427310999,0.23626066,69080.0,69067.0,0.57951985]
[1730427311244,0.23626066,69080.0,69067.0,0.66101985]
[1730427311463,0.21769576,69079.0,69076.0,0.023]
[1730427311678,0.21769576,69079.0,69078.0,0.30621825]
[1730427312094,0.0185649,69080.0,69079.0,0.167761]
[1730427312319,0.0185649,69080.0,69079.0,0.30621625]
[1730427312951,0.00502504,69080.0,69079.0,0.30621625]
[1730427313063,0.00164,69083.0,69082.0,0.336955]
[1730427313271,0.00164,69083.0,69082.0,0.55391025]
[1730427313476,0.00164,69083.0,69082.0,0.55591025]
[1730427314085,0.00164,69083.0,69082.0,0.55391025]
[1730427314286,0.00164,69083.0,69082.0,0.65591025]
[1730427314495,0.00164,69083.0,69082.0,0.79438755]
[1730427314905,0.00164,69083.0,69082.0,0.70319667]
[1730427315103,0.00164,69083.0,69082.0,0.69238755]
[1730427315312,0.21769576,69104.0,69103.0,0.144711]
[1730427315575,0.21769576,69104.0,69103.0,0.32063735]
[1730427315812,0.1748887,69120.0,69105.0,0.289413]
[1730427316017,0.005,69118.0,69109.0,0.023]
[1730427316263,0.14968,69118.0,69110.0,0.13845525]
[1730427316429,0.1748887,69115.0,69110.0,0.13845525]
[1730427316737,0.289393,69110.0,69089.0,0.289479]
[1730427316978,0.1798887,69104.0,69100.0,0.21769576]
[1730427317178,0.1653,69115.0,69093.0,0.13845525]
[1730427317179,0.1,69115.0,69093.0,0.13845525]
[1730427317389,0.005,69104.0,69093.0,0.35615101]
[1730427317905,0.005,69104.0,69094.0,0.21769576]
[1730427318130,0.005,69104.0,69096.0,0.023]
[1730427318362,0.149703,69107.0,69098.0,0.023]
[1730427318563,0.005,69104.0,69100.0,0.023]
[1730427318777,0.1,69108.0,69102.0,0.023]
[1730427318977,0.1,69108.0,69103.0,0.13845525]
[1730427319204,0.1748887,69115.0,69105.0,0.023]
[1730427319408,0.005,69111.0,69107.0,0.023]
[1730427319605,0.005,69111.0,69108.0,0.13845525]
[1730427319808,0.3195857,69110.0,69108.0,0.13845525]
[1730427320074,0.3195857,69110.0,69104.0,0.01614553]
[1730427320075,0.1748887,69110.0,69104.0,0.01614553]
[1730427320245,0.1748887,69110.0,69105.0,0.13845525]
[1730427320246,0.1447,69109.0,69105.0,0.13845525]
[1730427320585,0.005,69111.0,69106.0,0.02478871]
[1730427320796,0.1748887,69115.0,69107.0,0.14134875]
[1730427321007,0.000819,69108.0,69107.0,0.16145525]
[1730427321207,0.000819,69108.0,69105.0,0.023]
[1730427321337,0.000819,69108.0,69107.0,0.13845525]
[1730427321535,0.000819,69108.0,69107.0,0.16145525]
[1730427321737,0.000819,69108.0,69107.0,0.3090514]
[1730427321941,0.000819,69108.0,69107.0,0.30615825]
[1730427322166,0.000819,69108.0,69107.0,0.30815825]
[1730427322366,0.000819,69108.0,69107.0,0.44463555]
[1730427322539,0.000819,69108.0,69107.0,0.29993255]
[1730427322790,0.000819,69108.0,69107.0,0.16145525]
[1730427323194,0.000819,69108.0,69107.0,0.30767249]
[1730427323394,0.000819,69108.0,69107.0,0.30615825]
[1730427323622,0.000819,69108.0,69107.0,0.16145525]
[1730427323835,0.000819,69108.0,69107.0,0.30615825]
[1730427324068,0.000819,69108.0,69107.0,0.42024598]
[1730427324372,0.000819,69108.0,69107.0,0.42224598]
[1730427325348,0.000819,69108.0,69107.0,0.52224598]
[1730427325953,0.001642,69121.0,69120.0,0.167675]
[1730427326170,0.00164,69138.0,69124.0,0.023]
[1730427326373,0.21769576,69131.0,69127.0,0.1748887]
[1730427326569,0.00164,69138.0,69134.0,0.144645]
[1730427326771,0.144643,69136.0,69132.0,0.023]
[1730427327058,0.146278,69138.0,69125.0,0.144664]
[1730427327257,0.146278,69138.0,69124.0,0.023]
[1730427327258,0.144641,69137.0,69130.0,0.023]
[1730427327511,0.00164,69138.0,69137.0,0.023]
[1730427327720,0.00164,69138.0,69137.0,0.16145525]
[1730427328303,0.00164,69138.0,69137.0,0.13845525]
[1730427328518,0.146278,69138.0,69137.0,0.13845525]
[1730427328686,0.146278,69138.0,69137.0,0.15230078]
[1730427328931,0.00164,69138.0,69137.0,0.15230078]
[1730427329129,0.146278,69138.0,69137.0,0.15230078]
[1730427329351,0.00164,69138.0,69137.0,0.17530078]
[1730427331708,0.15242896,69138.0,69137.0,0.13845525]
[1730427333259,0.00779096,69138.0,69137.0,0.13845525]
[1730427333460,9e-05,69154.0,69138.0,0.123]
[1730427333664,9e-05,69154.0,69140.0,0.13845525]
[1730427333665,0.39258446,69149.0,69140.0,0.13845525]
[1730427333872,9e-05,69154.0,69139.0,0.16145525]
[1730427333873,0.144634,69140.0,69139.0,0.16145525]
[1730427334104,0.289255,69143.0,69139.0,0.17760078]
[1730427334311,0.15591076,69140.0,69139.0,0.17760078]
[1730427334519,0.15591076,69140.0,69139.0,0.15460078]
[1730427334806,0.02437259,69140.0,69139.0,0.16145525]
[1730427335130,0.15591076,69140.0,69139.0,0.13845525]
[1730427335324,0.16620048,69140.0,69139.0,0.13845525]
[1730427335871,0.16901967,69140.0,69139.0,0.13845525]
[1730427336068,0.16901967,69140.0,69139.0,0.15230078]
[1730427336659,0.15120048,69140.0,69139.0,0.15230078]
[1730427336867,0.00845757,69140.0,69139.0,0.18030078]
[1730427337103,0.14462,69147.0,69139.0,0.18030078]
[1730427337451,0.02098315,69148.0,69139.0,0.18030078]
[1730427337452,0.144618,69148.0,69140.0,0.04103008]
[1730427337596,0.144618,69148.0,69141.0,0.13845525]
[1730427337831,0.005,69149.0,69142.0,0.167628]
[1730427338018,0.01312108,69148.0,69144.0,0.023]
[1730427338216,0.01312108,69148.0,69147.0,0.023]
[1730427338426,0.0185649,69150.0,69147.0,0.16145525]
[1730427338588,0.0185649,69150.0,69149.0,0.023]
[1730427338789,0.0185649,69150.0,69149.0,0.16145525]
[1730427339001,0.0185649,69150.0,69149.0,0.19206278]
[1730427339201,0.1631779,69150.0,69149.0,0.16906278]
[1730427339402,0.1631779,69150.0,69149.0,0.13845525]
[1730427340044,0.0185649,69150.0,69149.0,0.16145525]
[1730427340468,0.0185649,69150.0,69149.0,0.30607025]
[1730427344157,0.00082,69153.0,69152.0,0.167608]
[1730427344369,0.00082,69153.0,69152.0,0.46636325]
[1730427344598,0.00082,69153.0,69152.0,0.64325195]
[1730427344821,0.00082,69153.0,69152.0,0.64125195]
[1730427345060,0.00082,69153.0,69152.0,0.64325195]
[1730427345296,0.00082,69153.0,69152.0,0.78172925]
[1730427345567,0.00082,69153.0,69152.0,0.60684055]
[1730427345777,0.00082,69153.0,69152.0,0.60484055]
[1730427346009,0.00082,69153.0,69152.0,0.77972925]
[1730427346936,0.00082,69153.0,69152.0,0.78172925]
[1730427347478,0.00082,69153.0,69152.0,0.77972925]
[1730427348136,0.00082,69153.0,69152.0,0.78172925]
[1730427348928,0.00082,69153.0,69152.0,0.77972925]
[1730427349343,0.00082,69153.0,69152.0,0.60484055]
[1730427350079,0.145426,69153.0,69152.0,0.27693255]
[1730427350275,0.00082,69153.0,69152.0,0.13845525]
[1730427350538,0.00082,69153.0,69152.0,0.28306325]
[1730427350711,0.00774899,69153.0,69152.0,0.28306325]
[1730427350921,0.00082,69153.0,69152.0,0.70495195]
[1730427351122,0.00082,69153.0,69152.0,0.70295195]
[1730427351334,0.00082,69153.0,69152.0,0.26679705]
[1730427351620,0.145426,69153.0,69152.0,0.13845525]
[1730427351847,0.00082,69153.0,69152.0,0.13845525]
[1730427351985,0.00774899,69153.0,69152.0,0.13845525]
[1730427352385,0.15235499,69153.0,69152.0,0.13845525]
[1730427352783,0.15235499,69153.0,69143.0,0.17753733]
[1730427352784,0.144625,69144.0,69143.0,0.03291133]
[1730427353038,0.144625,69144.0,69143.0,0.13845525]
[1730427353603,0.00692899,69144.0,69143.0,0.13845525]
[1730427354036,0.28923,69149.0,69143.0,0.13845525]
[1730427354304,0.144624,69145.0,69144.0,0.13845525]
[1730427354487,0.144624,69145.0,69129.0,0.1593]
[1730427354488,0.144625,69144.0,69143.0,0.13845525]
[1730427354664,0.144625,69144.0,69143.0,0.15230078]
[1730427354903,0.005,69144.0,69135.0,0.21769576]
[1730427355146,0.14464,69137.0,69136.0,0.35615101]
[1730427355650,0.14464,69137.0,69136.0,0.13845525]
[1730427355988,0.144663,69126.0,69125.0,0.00164]
[1730427356189,0.005,69136.0,69125.0,0.14009525]
[1730427356392,0.0777,69138.0,69125.0,0.14009525]
[1730427356393,0.005,69138.0,69126.0,0.16693137]
[1730427356615,0.01318972,69137.0,69126.0,0.16693137]
[1730427356792,0.144661,69127.0,69126.0,0.13845525]
[1730427357147,0.289309,69130.0,69125.0,0.00164]
[1730427357148,0.149663,69126.0,69125.0,0.00164]
[1730427358102,0.154663,69126.0,69125.0,0.00164]
[1730427358306,0.34272937,69126.0,69125.0,0.00164]
[1730427358503,0.44272937,69126.0,69125.0,0.00164]
[1730427358707,0.45272937,69126.0,69125.0,0.00164]
[1730427359528,0.59118462,69126.0,69125.0,0.00164]
[1730427359731,0.01,69109.0,69108.0,0.21769576]
[1730427359933,0.3295867,69109.0,69108.0,0.21769576]
[1730427360153,0.3295867,69109.0,69082.0,0.001642]
[1730427360154,0.005,69088.0,69082.0,0.001642]
[1730427360310,0.3246357,69086.0,69085.0,0.35615101]
[1730427360747,0.294485,69088.0,69085.0,0.13845525]
[1730427360976,0.294485,69088.0,69082.0,0.001642]